bitfinex/quotes_BTCUSD_20250527
["timestamp","ask_amount","ask_price","bid_price","bid_amount"]
[1748338724376,0.02939366,109510.0,109500.0,1.5919295]
[1748338724588,0.02026216,109510.0,109500.0,1.5919295]
[1748338724805,0.02939357,109510.0,109500.0,1.5919295]
[1748338725209,0.02026216,109510.0,109500.0,1.5919295]
[1748338725420,0.02939349,109510.0,109500.0,1.5919295]
[1748338726114,0.02026216,109510.0,109500.0,1.5919295]
[1748338726299,0.02939341,109510.0,109500.0,1.5919295]
[1748338726504,0.03852482,109510.0,109500.0,1.5919295]
[1748338726747,0.02939341,109510.0,109500.0,1.5919295]
[1748338726976,0.03852474,109510.0,109500.0,1.5919295]
[1748338727459,0.03852474,109510.0,109500.0,1.23768013]
[1748338727684,0.03852474,109510.0,109500.0,1.5919295]
[1748338729954,0.02026216,109510.0,109500.0,1.5919295]
[1748338730196,0.02939349,109510.0,109500.0,1.5919295]
[1748338731321,0.02026216,109510.0,109500.0,1.5919295]
[1748338731533,0.21142375,109520.0,109510.0,0.53176322]
[1748338731748,0.21142375,109520.0,109510.0,0.895144]
[1748338731966,0.21142375,109520.0,109510.0,0.87418584]
[1748338732988,0.21242375,109520.0,109510.0,0.87618584]
[1748338733461,0.21342375,109520.0,109510.0,0.87818584]
[1748338738368,0.21342375,109520.0,109510.0,0.55948453]
[1748338738809,0.21342375,109520.0,109510.0,0.87818584]
[1748338740932,0.21342375,109520.0,109510.0,0.86905443]
[1748338741857,0.21342375,109520.0,109510.0,0.52905443]
[1748338742281,0.21342375,109520.0,109510.0,0.33729121]
[1748338742861,0.21342375,109520.0,109510.0,0.51992293]
[1748338743201,0.21342375,109520.0,109510.0,0.33729121]
[1748338744053,0.21342375,109520.0,109510.0,0.0185899]
[1748338744274,0.21342375,109520.0,109510.0,0.33729121]
[1748338744852,0.21342375,109520.0,109510.0,0.0185899]
[1748338745066,0.21342375,109520.0,109510.0,0.33729121]
[1748338746561,0.21342375,109520.0,109510.0,0.20122162]
[1748338746770,0.21342375,109520.0,109510.0,0.51992293]
[1748338746969,0.21342375,109520.0,109510.0,0.33729121]
[1748338747669,0.21342375,109520.0,109510.0,0.0185899]
[1748338747896,0.21342375,109520.0,109510.0,0.32270131]
[1748338750096,0.21342375,109520.0,109510.0,0.51446461]
[1748338750706,0.21342375,109520.0,109510.0,0.52359611]
[1748338752295,0.21342375,109520.0,109510.0,0.54185885]
[1748338752485,0.21342375,109520.0,109510.0,0.53272752]
[1748338753434,0.21342375,109520.0,109510.0,0.54185885]
[1748338754442,0.21342375,109520.0,109510.0,0.53272752]
[1748338756292,0.21342375,109520.0,109510.0,0.52359611]
[1748338757079,0.21342375,109520.0,109510.0,0.18663172]
[1748338757288,0.204293,109520.0,109510.0,0.50533303]
[1748338759879,0.204293,109520.0,109510.0,0.51446461]
[1748338762426,0.204293,109520.0,109510.0,0.004]
[1748338762645,0.204293,109520.0,109510.0,0.32270131]
[1748338762858,0.204293,109520.0,109510.0,0.004]
[1748338763068,0.204293,109520.0,109510.0,0.32270131]
[1748338764832,0.204293,109520.0,109510.0,0.50533303]
[1748338765046,0.204293,109520.0,109510.0,0.51446461]
[1748338766270,0.204293,109520.0,109510.0,0.32270131]
[1748338767377,0.204293,109520.0,109510.0,0.004]
[1748338767563,0.204293,109520.0,109510.0,0.32270131]
[1748338768311,0.204293,109520.0,109510.0,0.66270131]
[1748338769604,0.204293,109520.0,109510.0,0.85446461]
[1748338771027,0.204293,109520.0,109510.0,0.51446461]
[1748338774980,0.204293,109520.0,109510.0,0.52359611]
[1748338776021,0.0465,109520.0,109510.0,0.54185852]
[1748338776231,0.25650637,109520.0,109510.0,0.54185852]
[1748338776412,0.25650637,109520.0,109510.0,0.53272744]
[1748338776620,0.25650637,109520.0,109510.0,0.54185869]
[1748338780440,0.24737612,109520.0,109510.0,0.54185869]
[1748338781698,0.23824562,109520.0,109510.0,0.52359611]
[1748338781901,0.23824562,109520.0,109510.0,0.53272744]
[1748338789445,0.23824562,109520.0,109510.0,0.86359611]
[1748338789852,0.22911504,109520.0,109510.0,0.86359611]
[1748338790560,0.22911504,109520.0,109510.0,0.63375143]
[1748338791310,0.22911504,109520.0,109510.0,0.64834809]
[1748338791504,0.22911504,109520.0,109510.0,0.63921659]
[1748338796841,0.22911504,109520.0,109510.0,0.54635996]
[1748338797050,0.22911504,109520.0,109510.0,0.86506127]
[1748338799452,0.22911504,109520.0,109510.0,0.67329797]
[1748338799653,0.22911504,109520.0,109510.0,1.12968969]
[1748338800447,0.22911504,109520.0,109510.0,0.94705797]
[1748338801558,0.22911504,109520.0,109510.0,0.65870131]
[1748338801786,0.22911504,109520.0,109510.0,0.34]
[1748338805280,0.22911504,109520.0,109510.0,0.35459642]
[1748338805915,0.22911504,109520.0,109510.0,0.01459642]
[1748338806349,0.24617569,109520.0,109510.0,0.01459642]
[1748338806772,0.24617569,109520.0,109510.0,0.01094536]
[1748338807632,0.22911504,109520.0,109510.0,0.01094536]
[1748338813896,0.2461624,109520.0,109510.0,0.01094536]
[1748338814343,0.23066313,109510.0,109500.0,0.66969641]
[1748338814557,0.23066313,109510.0,109500.0,0.3509951]
[1748338814987,0.23066313,109510.0,109500.0,0.66969641]
[1748338815214,0.23066313,109510.0,109500.0,0.3509951]
[1748338815650,0.23166313,109510.0,109500.0,0.3519951]
[1748338816275,0.23266313,109510.0,109500.0,0.3529951]
[1748338817323,0.24179446,109510.0,109500.0,0.01294536]
[1748338817523,0.24179446,109510.0,109500.0,0.33164667]
[1748338817726,0.20289446,109510.0,109500.0,0.33164667]
[1748338817971,0.19376313,109510.0,109500.0,0.33164667]
[1748338818411,0.19376313,109510.0,109500.0,0.34624309]
[1748338818837,0.21276313,109510.0,109500.0,0.34624309]
[1748338819558,0.21276313,109510.0,109500.0,0.36754178]
[1748338819772,0.21276313,109510.0,109500.0,0.68624309]
[1748338819995,0.20363172,109510.0,109500.0,0.68624309]
[1748338823374,0.20363172,109510.0,109500.0,0.86889149]
[1748338823737,0.20363172,109510.0,109500.0,0.68624309]
[1748338824729,0.22273172,109510.0,109500.0,0.68624309]
[1748338825871,0.22248974,109510.0,109500.0,0.68624309]
[1748338826328,0.22248974,109510.0,109500.0,0.67529773]
[1748338826856,0.22248974,109510.0,109500.0,0.35659642]
[1748338827065,0.22248974,109510.0,109500.0,0.67529773]
[1748338827485,0.22248974,109510.0,109500.0,0.35659642]
[1748338827697,0.22248974,109510.0,109500.0,0.67529773]
[1748338829936,0.22248974,109510.0,109500.0,0.35659642]
[1748338830142,0.20338974,109510.0,109500.0,0.67529773]
[1748338830970,0.20338974,109510.0,109500.0,0.86707855]
[1748338831190,0.20338974,109510.0,109500.0,0.67529773]
[1748338831430,0.22308974,109510.0,109500.0,0.67529773]
[1748338837398,0.22308974,109510.0,109500.0,0.85794613]
[1748338837614,0.22308974,109510.0,109500.0,0.87621071]
[1748338837831,0.22308974,109510.0,109500.0,0.85794613]
[1748338838071,0.22308974,109510.0,109500.0,1.21202613]
[1748338838276,0.22308974,109510.0,109500.0,1.02937773]
[1748338839118,0.22308974,109510.0,109500.0,0.71067642]
[1748338842792,0.22308974,109510.0,109500.0,0.35659642]
[1748338843767,0.22308974,109510.0,109500.0,0.342]
[1748338846880,0.22308974,109510.0,109500.0,0.5246484]
[1748338847160,0.22308974,109510.0,109500.0,0.53378082]
[1748338849552,0.22308974,109510.0,109500.0,0.342]
[1748338850001,0.22308974,109510.0,109500.0,0.5246484]
[1748338850407,0.22308974,109510.0,109500.0,0.84334971]
[1748338850642,0.22308974,109510.0,109500.0,0.5246484]
[1748338851042,0.22308974,109510.0,109500.0,0.84334971]
[1748338851530,0.22308974,109510.0,109500.0,0.50334971]
[1748338855625,0.22308974,109510.0,109500.0,0.1846484]
[1748338855841,0.22308974,109510.0,109500.0,0.50334971]
[1748338856874,0.22308974,109510.0,109500.0,0.32070131]
[1748338857250,0.22308974,109510.0,109500.0,0.51248213]
[1748338859895,0.22308974,109510.0,109500.0,0.85248213]
[1748338863837,0.22308974,109510.0,109500.0,0.86161446]
[1748338864061,0.22308974,109510.0,109500.0,0.85248213]
[1748338864668,0.22308974,109510.0,109500.0,1.21553446]
[1748338866001,0.002,109510.0,109500.0,1.60694053]
[1748338866222,0.002,109510.0,109500.0,1.65833145]
[1748338866447,0.002,109510.0,109500.0,1.63433753]
[1748338866669,0.01113083,109510.0,109500.0,1.63433753]
[1748338867376,0.01113083,109510.0,109500.0,1.66353142]
[1748338867575,0.002,109510.0,109500.0,1.66353142]
[1748338868312,0.01113083,109510.0,109500.0,1.66353142]
[1748338870997,0.01113083,109510.0,109500.0,1.63433753]
[1748338871671,0.01113083,109510.0,109500.0,1.93083753]
[1748338871881,0.02026174,109510.0,109500.0,1.93083753]
[1748338872090,0.002,109510.0,109500.0,1.93083753]
[1748338872297,0.01113083,109510.0,109500.0,1.93083753]
[1748338873823,0.01113083,109510.0,109500.0,1.74618913]
[1748338873981,0.01113083,109510.0,109500.0,1.92883753]
[1748338874182,0.02026183,109510.0,109500.0,1.92883753]
[1748338874618,0.01113083,109510.0,109500.0,1.92883753]
[1748338874819,0.02026183,109510.0,109500.0,1.92883753]
[1748338876106,0.02026183,109510.0,109500.0,1.90963753]
[1748338877480,0.02026174,109510.0,109500.0,1.90963753]
[1748338877686,0.02026174,109510.0,109500.0,2.30383753]
[1748338878723,0.01113083,109510.0,109500.0,2.30383753]
[1748338879144,0.02026183,109510.0,109500.0,2.30383753]
[1748338879544,0.01113083,109510.0,109500.0,2.30383753]
[1748338879751,0.02026183,109510.0,109500.0,2.30383753]
[1748338880167,0.02026183,109510.0,109500.0,2.55689753]
[1748338881385,0.02026183,109510.0,109500.0,2.55689753]
[1748338886939,0.02939291,109510.0,109500.0,2.55689753]
[1748338887766,0.02026183,109510.0,109500.0,2.55689753]
[1748338889322,0.02939299,109510.0,109500.0,2.55689753]
[1748338889542,0.02939299,109510.0,109500.0,2.58609142]
[1748338889742,0.01113083,109510.0,109500.0,2.58609142]
[1748338889952,0.02026183,109510.0,109500.0,2.58609142]
[1748338894036,0.04026183,109510.0,109500.0,2.58609142]
[1748338894602,0.04939299,109510.0,109500.0,2.58609142]
[1748338894818,0.06909291,109510.0,109500.0,2.58609142]
[1748338895308,0.06909291,109510.0,109500.0,2.01583142]
[1748338895522,0.07822424,109510.0,109500.0,1.69713027]
[1748338895732,0.08735565,109510.0,109500.0,1.9800221]
[1748338895948,0.08735565,109510.0,109500.0,2.29872341]
[1748338897310,0.07822424,109510.0,109500.0,2.29872341]
[1748338899463,0.06909291,109510.0,109500.0,2.29872341]
[1748338901773,0.07822407,109510.0,109500.0,2.29872341]
[1748338903951,0.06909291,109510.0,109500.0,2.29872341]
[1748338904347,0.07822416,109510.0,109500.0,2.29872341]
[1748338905078,0.06909291,109510.0,109500.0,2.29872341]
[1748338905204,0.06909291,109510.0,109500.0,1.67104341]
[1748338905405,0.06909291,109510.0,109500.0,2.29844341]
[1748338906337,0.07822424,109510.0,109500.0,2.29844341]
[1748338906522,0.07822416,109510.0,109500.0,2.29844341]
[1748338907547,0.06909291,109510.0,109500.0,2.29844341]
[1748338907842,0.06909291,109510.0,109500.0,1.90424341]
[1748338908076,0.07822416,109510.0,109500.0,1.56424341]
[1748338908498,0.06909291,109510.0,109500.0,1.2455421]
[1748338908711,0.07822416,109510.0,109500.0,1.2455421]
[1748338909155,0.26998729,109510.0,109500.0,0.58533751]
[1748338909365,0.26085704,109510.0,109500.0,1.21273743]
[1748338909580,0.26085696,109510.0,109500.0,1.22186934]
[1748338909800,0.26998854,109510.0,109500.0,1.22186934]
[1748338911148,0.26085746,109510.0,109500.0,1.22186934]
[1748338911295,0.26085746,109510.0,109500.0,1.22186943]
[1748338913025,0.26085746,109510.0,109500.0,1.56186943]
[1748338913235,0.25172621,109510.0,109500.0,1.55273743]
[1748338913455,0.25172621,109510.0,109500.0,1.56186943]
[1748338913667,0.25172621,109510.0,109500.0,1.53267554]
[1748338914570,0.24259463,109510.0,109500.0,1.86050868]
[1748338914781,0.25172621,109510.0,109500.0,1.88057074]
[1748338915513,0.25172621,109510.0,109500.0,1.56186943]
[1748338916069,0.25172621,109510.0,109500.0,1.53267554]
[1748338921108,0.25172621,109510.0,109500.0,1.25891554]
[1748338921312,0.25172621,109510.0,109500.0,1.53267554]
[1748338923802,0.25172621,109510.0,109500.0,1.54180745]
[1748338925472,0.25172621,109510.0,109500.0,1.57100134]
[1748338926402,0.25172621,109510.0,109500.0,1.56186943]
[1748338926900,0.25172621,109510.0,109500.0,1.53267554]
[1748338929041,0.25172621,109510.0,109500.0,1.56186943]
[1748338931256,0.25172621,109510.0,109500.0,1.53267554]
[1748338932041,0.25172621,109510.0,109500.0,1.49614612]
[1748338933209,0.25172621,109510.0,109500.0,1.50527854]
[1748338933453,0.25172621,109510.0,109500.0,1.82397985]
[1748338935300,0.0690934,109510.0,109500.0,1.83311168]
[1748338935510,0.04026191,109510.0,109500.0,1.83311168]
[1748338935699,0.02026183,109510.0,109500.0,2.68666353]
[1748338935899,0.02026183,109510.0,109500.0,2.49736653]
[1748338936037,0.02026191,109510.0,109500.0,2.26485953]
[1748338936458,0.01113083,109510.0,109500.0,2.26485953]
[1748338936671,0.01113083,109510.0,109500.0,2.56135953]
[1748338936899,0.002,109510.0,109500.0,2.58065953]
[1748338937264,0.01113083,109510.0,109500.0,2.58065953]
[1748338937466,0.002,109510.0,109500.0,2.58065953]
[1748338937886,0.002,109510.0,109500.0,2.30405953]
[1748338938304,0.050731,109510.0,109500.0,2.11776453]
[1748338938532,0.05986208,109510.0,109500.0,1.76208237]
[1748338938779,0.06899341,109510.0,109500.0,1.70015622]
[1748338938996,0.06899341,109510.0,109500.0,2.01885753]
[1748338939246,0.06899333,109510.0,109500.0,2.01885753]
[1748338939822,0.06899333,109510.0,109500.0,1.70015622]
[1748338940236,0.06899333,109510.0,109500.0,2.01885753]
[1748338941213,0.06899333,109510.0,109500.0,1.70015622]
[1748338941419,0.06899333,109510.0,109500.0,2.00431668]
[1748338941623,0.06899333,109510.0,109500.0,1.68561537]
[1748338942260,0.06899333,109510.0,109500.0,2.00431668]
[1748338942609,0.06899333,109510.0,109500.0,2.03351057]
[1748338943018,0.06899333,109510.0,109500.0,2.06090857]
[1748338943410,0.05986208,109510.0,109500.0,2.06090857]
[1748338947827,0.05986208,109510.0,109500.0,1.74220726]
[1748338948206,0.05986208,109510.0,109500.0,2.06090857]
[1748338949523,0.050731,109510.0,109500.0,2.06090857]
[1748338950213,0.06899357,109510.0,109500.0,2.06090857]
[1748338950413,0.06899349,109510.0,109500.0,2.06090857]
[1748338950564,0.06899349,109510.0,109500.0,1.46844726]
[1748338950792,0.0689939,109510.0,109500.0,1.56151026]
[1748338951200,0.24249446,109510.0,109500.0,0.38243389]
[1748338951429,0.24249446,109510.0,109500.0,0.99619389]
[1748338952265,0.24249446,109510.0,109500.0,0.967]
[1748338956318,0.24249446,109510.0,109500.0,0.34]
[1748338956531,0.24249446,109510.0,109500.0,0.9666]
[1748338961497,0.24249446,109510.0,109500.0,0.98117459]
[1748338963132,0.24249446,109510.0,109500.0,1.2998759]
[1748338972274,0.24249446,109510.0,109500.0,1.30000422]
[1748338972497,0.56132409,109510.0,109500.0,0.01457459]
[1748338972948,0.57836096,109510.0,109500.0,0.01457459]
[1748338973174,0.23238065,109500.0,109490.0,0.29167996]
[1748338973607,0.24941752,109500.0,109490.0,0.29167996]
[1748338973832,0.56824715,109500.0,109490.0,0.29167996]
[1748338974064,0.24941752,109500.0,109490.0,0.29167996]
[1748338974496,0.24941752,109500.0,109490.0,0.28074962]
[1748338975020,0.25041752,109500.0,109490.0,0.28074962]
[1748338975445,0.25141752,109500.0,109490.0,0.28074962]
[1748338976649,0.57024715,109500.0,109490.0,0.28074962]
[1748338977083,0.57024715,109500.0,109490.0,0.06220781]
[1748338978039,0.55321028,109500.0,109490.0,0.06220781]
[1748338978658,0.82701028,109500.0,109490.0,0.06220781]
[1748338978880,1.14583991,109500.0,109490.0,0.06220781]
[1748338979108,0.84402002,109500.0,109490.0,0.06220781]
[1748338979551,0.52519039,109500.0,109490.0,0.06220781]
[1748338979780,0.84402002,109500.0,109490.0,0.06220781]
[1748338980015,0.84302002,109500.0,109490.0,0.06220781]
[1748338981359,0.52419039,109500.0,109490.0,0.06220781]
[1748338981580,0.84302002,109500.0,109490.0,0.06220781]
[1748338981802,0.84402002,109500.0,109490.0,0.06220781]
[1748338982243,0.52519039,109500.0,109490.0,0.06220781]
[1748338982477,0.84402002,109500.0,109490.0,0.06220781]
[1748338983732,0.52519039,109500.0,109490.0,0.06220781]
[1748338983963,0.84402002,109500.0,109490.0,0.06220781]
[1748338985404,0.82701028,109500.0,109490.0,0.06220781]
[1748338987522,0.87203991,109500.0,109490.0,0.06220781]
[1748338987735,1.49843991,109500.0,109490.0,0.06220781]
[1748338987947,1.17961028,109500.0,109490.0,0.06220781]
[1748338988489,1.19662002,109500.0,109490.0,0.06220781]
[1748338992179,0.92278002,109500.0,109490.0,0.06220781]
[1748338992391,0.87783039,109500.0,109490.0,0.06220781]
[1748338992604,1.19666002,109500.0,109490.0,0.06220781]
[1748338992820,1.17965028,109500.0,109490.0,0.06220781]
[1748338993222,1.19666002,109500.0,109490.0,0.06220781]
[1748338997122,1.51548965,109500.0,109490.0,0.06220781]
[1748338999807,1.52399356,109500.0,109490.0,0.06220781]
[1748339000795,1.20516393,109500.0,109490.0,0.06220781]
[1748339002366,0.8863343,109500.0,109490.0,0.06220781]
[1748339002575,1.20516393,109500.0,109490.0,0.06220781]
[1748339002970,0.57872393,109500.0,109490.0,0.06220781]
[1748339003207,1.20520393,109500.0,109490.0,0.06220781]
[1748339006001,1.52403356,109500.0,109490.0,0.06220781]
[1748339006224,1.20520393,109500.0,109490.0,0.06220781]
[1748339009200,1.52403356,109500.0,109490.0,0.06220781]
[1748339009598,1.20520393,109500.0,109490.0,0.06220781]
[1748339011811,1.53857441,109500.0,109490.0,0.06220781]
[1748339012651,1.21124087,109500.0,109490.0,0.06220781]
[1748339012862,1.5300705,109500.0,109490.0,0.06220781]
[1748339014590,1.55567043,109500.0,109490.0,0.06220781]
[1748339014797,1.2368408,109500.0,109490.0,0.06220781]
[1748339014998,1.55567043,109500.0,109490.0,0.06220781]
[1748339017993,1.2368408,109500.0,109490.0,0.06220781]
[1748339018282,1.55567043,109500.0,109490.0,0.06220781]
[1748339019954,1.2368408,109500.0,109490.0,0.06220781]
[1748339020814,1.89567043,109500.0,109490.0,0.06220781]
[1748339020988,1.5768408,109500.0,109490.0,0.06220781]
[1748339021676,1.6729008,109500.0,109490.0,0.06220781]
[1748339021961,2.05651043,109500.0,109490.0,0.06220781]
[1748339022179,2.05651043,109500.0,109490.0,0.06170014]
[1748339022397,2.11959366,109500.0,109490.0,0.06170014]
[1748339022758,2.14601166,109500.0,109490.0,0.06170014]
[1748339022968,2.14801166,109500.0,109490.0,0.06170014]
[1748339023587,2.14501166,109500.0,109490.0,0.06170014]
[1748339023936,2.45501166,109500.0,109490.0,0.06170014]
[1748339025031,2.52894327,109500.0,109490.0,0.06170014]
[1748339025386,2.50409512,109500.0,109490.0,0.06170014]
[1748339025790,2.47184754,109500.0,109490.0,0.06170014]
[1748339026554,2.47184754,109500.0,109490.0,0.04029529]
[1748339029380,2.49669569,109500.0,109490.0,0.04029529]
[1748339029553,2.44669569,109500.0,109490.0,0.04029529]
[1748339030155,2.42276408,109500.0,109490.0,0.04029529]
[1748339032459,2.43159371,109500.0,109490.0,0.04029529]
[1748339032667,2.13791593,109500.0,109490.0,0.04029529]
[1748339032878,2.16184754,109500.0,109490.0,0.04029529]
[1748339033097,2.48067717,109500.0,109490.0,0.04029529]
[1748339033330,0.01913392,109480.0,109470.0,1.5]
[1748339033563,2.40978553,109480.0,109470.0,1.15048916]
[1748339033791,2.4843829,109480.0,109470.0,1.15048916]
[1748339034012,2.5618089,109480.0,109470.0,1.15048916]
[1748339034236,2.70996144,109480.0,109470.0,1.15048916]
[1748339034476,1.39693872,109480.0,109470.0,1.15048916]
[1748339034704,2.66687798,109480.0,109470.0,1.15048916]
[1748339035140,2.69180349,109480.0,109470.0,1.15048916]
[1748339035357,2.71575778,109480.0,109470.0,1.15048916]
[1748339036020,2.43299919,109480.0,109470.0,1.15048916]
[1748339036229,2.43899919,109480.0,109470.0,1.10525834]
[1748339036651,2.44985659,109480.0,109470.0,1.10525834]
[1748339037323,2.42434268,109480.0,109470.0,0.7557475]
[1748339037733,2.43025282,109480.0,109470.0,0.7557475]
[1748339037943,2.41939542,109480.0,109470.0,0.7557475]
[1748339038158,2.44207003,109480.0,109470.0,0.7557475]
[1748339038572,3.4969707,109480.0,109470.0,0.7276975]
[1748339038778,3.14207003,109480.0,109470.0,0.7276975]
[1748339038938,3.14207003,109480.0,109470.0,0.68246668]
[1748339039146,3.13607003,109480.0,109470.0,0.68246668]
[1748339039336,3.10744113,109480.0,109470.0,0.68246668]
[1748339039575,3.13948531,109480.0,109470.0,0.68246668]
[1748339039778,2.50720531,109480.0,109470.0,0.68246668]
[1748339040008,3.17812531,109480.0,109470.0,0.68246668]
[1748339040690,3.19612531,109480.0,109470.0,0.68246668]
[1748339043971,3.15164531,109480.0,109470.0,0.68246668]
[1748339044179,3.20035763,109480.0,109470.0,0.68246668]
[1748339045725,2.50035763,109480.0,109470.0,0.68246668]
[1748339045929,2.45164531,109480.0,109470.0,0.68246668]
[1748339046131,2.45172531,109480.0,109470.0,0.68246668]
[1748339046363,2.50043763,109480.0,109470.0,0.68246668]
[1748339046776,2.45172531,109480.0,109470.0,0.6610524]
[1748339046927,2.47570019,109480.0,109470.0,0.59874027]
[1748339047155,2.50043763,109480.0,109470.0,0.55306574]
[1748339047355,2.52581995,109480.0,109470.0,0.52556574]
[1748339048250,2.53667735,109480.0,109470.0,0.52556574]
[1748339048889,3.23667735,109480.0,109470.0,0.52556574]
[1748339049441,2.24071583,109480.0,109470.0,0.52556574]
[1748339049645,3.17306418,109480.0,109470.0,0.52556574]
[1748339049864,3.18760503,109480.0,109470.0,0.52556574]
[1748339050461,3.15556085,109480.0,109470.0,0.52556574]
[1748339050660,3.15556085,109480.0,109470.0,0.49803221]
[1748339050864,3.14470345,109480.0,109470.0,0.49803221]
[1748339052138,2.44470345,109480.0,109470.0,0.49803221]
[1748339054050,1.76854345,109480.0,109470.0,0.49803221]
[1748339054279,2.32936113,109480.0,109470.0,0.49803221]
[1748339054484,2.66936113,109480.0,109470.0,0.49803221]
[1748339054740,2.04316113,109480.0,109470.0,0.49803221]
[1748339054948,2.40528113,109480.0,109470.0,0.49803221]
[1748339055159,2.66066113,109480.0,109470.0,0.49803221]
[1748339055951,2.68658113,109480.0,109470.0,0.49803221]
[1748339056200,1.49779961,109480.0,109470.0,0.51683221]
[1748339056406,2.12187961,109480.0,109470.0,0.53393221]
[1748339056623,2.48124046,109480.0,109470.0,0.53393221]
[1748339056845,2.51320105,109480.0,109470.0,0.53393221]
[1748339057089,2.51316105,109480.0,109470.0,0.53393221]
[1748339058175,2.56316105,109480.0,109470.0,0.53393221]
[1748339059903,1.93700105,109480.0,109470.0,0.53393221]
[1748339060132,2.50036481,109480.0,109470.0,0.53393221]
[1748339061328,2.52580198,109480.0,109470.0,0.53393221]
[1748339062631,2.52580198,109480.0,109470.0,0.51683221]
[1748339063187,2.88070265,109480.0,109470.0,0.51683221]
[1748339064106,2.52580198,109480.0,109470.0,0.51683221]
[1748339065176,2.58839311,109480.0,109470.0,0.51683221]
[1748339065391,2.56295594,109480.0,109470.0,0.33479098]
[1748339067597,2.50036481,109480.0,109470.0,0.33479098]
[1748339068250,2.59642481,109480.0,109470.0,0.33479098]
[1748339071228,1.52582481,109480.0,109470.0,0.33479098]
[1748339071486,0.27225142,109480.0,109470.0,0.33309098]
[1748339071706,0.27225142,109480.0,109470.0,1.02899165]
[1748339071932,0.03897715,109480.0,109470.0,1.2526446]
[1748339072155,0.04211216,109490.0,109480.0,0.54094968]
[1748339072410,0.02384675,109490.0,109480.0,0.95216527]
[1748339072639,0.0421125,109490.0,109480.0,0.75121559]
[1748339072864,0.06037875,109490.0,109480.0,0.9521651]
[1748339073302,0.05224575,109490.0,109480.0,0.61579793]
[1748339073526,0.05224575,109490.0,109480.0,0.97983218]
[1748339073757,0.05224575,109490.0,109480.0,0.91438376]
[1748339074187,0.070512,109490.0,109480.0,0.91438376]
[1748339074454,0.043112,109490.0,109480.0,0.91438376]
[1748339074679,0.06137809,109490.0,109480.0,0.70430067]
[1748339074968,0.06137792,109490.0,109480.0,0.91025035]
[1748339075204,0.05224492,109490.0,109480.0,0.92851785]
[1748339075436,0.05224492,109490.0,109480.0,0.94236735]
[1748339075437,0.043112,109490.0,109480.0,0.94236735]
[1748339075670,0.01926525,109490.0,109480.0,0.94204119]
[1748339075878,0.028398,109490.0,109480.0,0.94204119]
[1748339077219,0.02839809,109490.0,109480.0,0.93290769]
[1748339077476,0.028398,109490.0,109480.0,0.58714052]
[1748339077681,0.028398,109490.0,109480.0,0.94204119]
[1748339078124,0.21106308,109490.0,109480.0,0.71369051]
[1748339078350,0.20193099,109490.0,109480.0,0.01878984]
[1748339078562,0.20193099,109490.0,109480.0,0.37369051]
[1748339079761,0.20193099,109490.0,109480.0,0.01878984]
[1748339079981,0.47585099,109490.0,109480.0,0.01038984]
[1748339080643,1.22500343,109530.0,109520.0,0.54087629]
[1748339080644,0.002,109530.0,109520.0,0.54087629]
[1748339080873,0.02938815,109530.0,109520.0,0.88664646]
[1748339081092,0.04764773,109530.0,109520.0,0.91403778]
[1748339081317,0.002,109530.0,109520.0,0.92316794]
[1748339081525,0.002,109530.0,109520.0,0.93606794]
[1748339081746,1.002,109550.0,109540.0,0.91776862]
[1748339081967,1.02947439,109550.0,109540.0,0.87658214]
[1748339082175,1.21204001,109550.0,109540.0,0.86745339]
[1748339082378,1.21204001,109550.0,109540.0,0.67574269]
[1748339082637,1.20291218,109550.0,109540.0,0.68157009]
[1748339082844,1.20291218,109550.0,109540.0,0.70993997]
[1748339083311,1.20291218,109550.0,109540.0,0.68157009]
[1748339083529,1.20291218,109550.0,109540.0,0.68557009]
[1748339083743,1.20291218,109550.0,109540.0,0.68757009]
[1748339084419,1.20291218,109550.0,109540.0,0.3691274]
[1748339086505,1.20291218,109550.0,109540.0,0.38254066]
[1748339087923,1.20291218,109550.0,109540.0,0.37814066]
[1748339088939,1.20291218,109550.0,109540.0,0.40552966]
[1748339089660,1.20291218,109550.0,109540.0,0.58811136]
[1748339090098,1.20291218,109550.0,109540.0,0.40992966]
[1748339092002,1.20291218,109550.0,109540.0,0.40410226]
[1748339092218,1.20291218,109550.0,109540.0,0.40959628]
[1748339093304,1.20291218,109550.0,109540.0,0.59217798]
[1748339093521,1.20291218,109550.0,109540.0,0.68335628]
[1748339093742,1.20291218,109550.0,109540.0,1.27067429]
[1748339093743,1.03860223,109550.0,109540.0,1.27067429]
[1748339093954,1.23029617,109550.0,109540.0,1.27067445]
[1748339094174,1.22116842,109550.0,109540.0,0.95223176]
[1748339094403,1.21204042,109550.0,109540.0,1.27067478]
[1748339094825,1.21204042,109550.0,109540.0,1.27980353]
[1748339095259,1.0020909,109550.0,109540.0,0.97048934]
[1748339095502,1.02947522,109550.0,109540.0,0.97048934]
[1748339095722,1.21204025,109550.0,109540.0,1.28893203]
[1748339096460,1.221168,109550.0,109540.0,1.27980353]
[1748339096671,1.04773047,109550.0,109540.0,1.28893203]
[1748339097055,1.2302955,109550.0,109540.0,1.28893203]
[1748339097278,1.20291234,109550.0,109540.0,0.39229628]
[1748339097491,1.20291234,109550.0,109540.0,0.66601628]
[1748339097704,1.20291234,109550.0,109540.0,0.6752911]
[1748339098133,1.20291234,109550.0,109540.0,0.6479021]
[1748339099449,1.20291234,109550.0,109540.0,0.62102494]
[1748339100098,1.20291234,109550.0,109540.0,0.34730494]
[1748339100330,1.20291234,109550.0,109540.0,0.62643486]
[1748339102298,1.20291234,109550.0,109540.0,0.34344004]
[1748339102977,1.20291234,109550.0,109540.0,0.343327]
[1748339103748,1.21137458,109550.0,109540.0,0.343327]
[1748339104958,1.21137458,109550.0,109540.0,0.35238321]
[1748339105981,1.21137458,109550.0,109540.0,0.34708633]
[1748339106820,1.21137458,109550.0,109540.0,0.70106801]
[1748339107005,1.21137458,109550.0,109540.0,0.34708633]
[1748339107157,1.21137458,109550.0,109540.0,0.70106801]
[1748339107368,1.21137458,109550.0,109540.0,0.70625534]
[1748339108893,1.21137458,109550.0,109540.0,0.35227366]
[1748339109347,1.21137458,109550.0,109540.0,0.35219919]
[1748339109984,1.22836995,109550.0,109540.0,0.70618087]
[1748339110235,1.21137458,109550.0,109540.0,0.70618087]
[1748339110910,1.22841491,109550.0,109540.0,0.70618087]
[1748339111547,1.22841491,109550.0,109540.0,0.38756401]
[1748339111757,1.22841491,109550.0,109540.0,0.03358233]
[1748339111978,1.22841491,109550.0,109540.0,0.38756401]
[1748339112202,1.21137458,109550.0,109540.0,0.38756401]
[1748339113334,1.21137458,109550.0,109540.0,0.59367471]
[1748339113553,1.21137458,109550.0,109540.0,0.60280354]
[1748339113744,1.20224642,109550.0,109540.0,0.59367471]
[1748339113959,1.20224642,109550.0,109540.0,0.60280362]
[1748339114263,1.20224642,109550.0,109540.0,0.93367471]
[1748339114472,1.19311817,109550.0,109540.0,0.96106271]
[1748339115718,1.19311817,109550.0,109540.0,0.97019162]
[1748339116448,1.18465593,109550.0,109540.0,0.63019162]
[1748339117962,1.18465593,109550.0,109540.0,0.97932037]
[1748339118173,1.18465593,109550.0,109540.0,0.97932045]
[1748339118404,1.19378401,109550.0,109540.0,0.97932045]